fUST/lending_fUST_20260618
["ID","MTS","AMOUNT","RATE_DAILY","PERIOD"]
[425458493,1781772632000,-500.0,0.00016526,2]
[425458484,1781772632000,-500.0,0.00016438,2]
[425458504,1781772632000,-261.53803379,0.00016526,2]
[425458492,1781772632000,-500.0,0.00016526,2]
[425458481,1781772632000,-392.04939802,0.00016438,2]
[425459175,1781772640000,-500.0,0.000168,2]
[425459171,1781772640000,-264.776953,0.000168,2]
[425459177,1781772640000,-500.0,0.000168,2]
[425459163,1781772640000,-151.0,0.00016545,2]
[425459169,1781772640000,-500.0,0.00016799,2]
[425459168,1781772640000,-500.0,0.00016712,2]
[425459170,1781772640000,-500.0,0.000168,2]
[425459167,1781772640000,-237.30528542,0.00016659,2]
[425459165,1781772640000,-151.0,0.00016545,2]
[425459166,1781772640000,-1004.0,0.00016545,2]
[425459156,1781772640000,-234.03377045,0.00016526,2]
[425459161,1781772640000,-539.8786728,0.00016527,2]
[425459172,1781772640000,-500.0,0.000168,2]
[425459173,1781772640000,-500.0,0.000168,2]
[425459162,1781772640000,-359.9191153,0.00016527,2]
[425459160,1781772640000,-6202.07204864,0.00016527,2]
[425459159,1781772640000,-45.39432726,0.00016527,2]
[425459158,1781772640000,-500.0,0.00016526,2]
[425459155,1781772640000,-225.45955555,0.00016526,2]
[425459157,1781772640000,-268.15315211,0.00016526,2]
[425459174,1781772640000,-500.0,0.000168,2]
[425459164,1781772640000,-151.0,0.00016545,2]
[425459179,1781772640000,-500.0,0.000168,2]
[425459190,1781772640000,-512.68957594,0.00016899,2]
[425459183,1781772640000,-160.0,0.00016882,2]
[425459202,1781772640000,-512.68957594,0.00016899,2]
[425459201,1781772640000,-512.68957594,0.00016899,2]
[425459200,1781772640000,-512.68957594,0.00016899,2]
[425459199,1781772640000,-512.68957594,0.00016899,2]
[425459197,1781772640000,-512.68957594,0.00016899,2]
[425459198,1781772640000,-512.68957594,0.00016899,2]
[425459196,1781772640000,-512.68957594,0.00016899,2]
[425459193,1781772640000,-512.68957594,0.00016899,2]
[425459184,1781772640000,-160.0,0.00016882,2]
[425459195,1781772640000,-512.68957594,0.00016899,2]
[425459192,1781772640000,-512.68957594,0.00016899,2]
[425459194,1781772640000,-512.68957594,0.00016899,2]
[425459188,1781772640000,-512.68957594,0.00016899,2]
[425459189,1781772640000,-512.68957594,0.00016899,2]
[425459178,1781772640000,-321.85874027,0.000168,2]
[425459185,1781772640000,-1893.43758154,0.00016885,2]
[425459182,1781772640000,-210.0,0.00016816,2]
[425459181,1781772640000,-500.0,0.000168,2]
[425459186,1781772640000,-116.60302973,0.00016885,2]
[425459176,1781772640000,-500.0,0.000168,2]
[425459180,1781772640000,-500.0,0.000168,2]
[425459187,1781772640000,-228.15742258,0.00016899,2]
[425459191,1781772640000,-512.68957594,0.00016899,2]
[425459203,1781772641000,-512.68957594,0.00016899,2]
[425459204,1781772641000,-545.31527622,0.00016899,2]
[425459207,1781772641000,-545.31527622,0.00016899,2]
[425459206,1781772641000,-545.31527622,0.00016899,2]
[425459208,1781772641000,-545.31527622,0.00016899,2]
[425459205,1781772641000,-545.31527622,0.00016899,2]
[425459213,1781772641000,-627.18916572,0.00016899,2]
[425459212,1781772641000,-545.31527622,0.00016899,2]
[425459209,1781772641000,-545.31527622,0.00016899,2]
[425459211,1781772641000,-545.31527622,0.00016899,2]
[425459214,1781772641000,-927.25003661,0.000169,2]
[425459210,1781772641000,-545.31527622,0.00016899,2]
[425459541,1781772646000,-622.01,0.000169,2]
[425460188,1781773102000,1128.85,0.00024658,120]
[425460192,1781773304000,158.67,0.00024658,120]
[425460274,1781773832000,-215.08095502,0.0001,2]
[425460272,1781773832000,-510.33778343,0.0001,2]
[425460276,1781773832000,-679.15579596,0.0001,2]
[425460278,1781773832000,-156.188,0.00010959,2]
[425460280,1781773832000,-6449.61146518,0.00012,2]
[425460361,1781773841000,-933.43019471,0.00012,2]
[425460360,1781773841000,-6667.97740244,0.00012,2]
[425460967,1781773846000,-9340.09573698,0.00012,2]
[425463757,1781774542000,750.6328557,0.000166,30]
[425463822,1781775031000,-349.36689431,0.00012,2]
[425463824,1781775031000,-723.79334226,0.00012,2]
[425463826,1781775031000,-2805.34792673,0.00012,2]
[425463828,1781775031000,-5626.56405827,0.00012,2]
[425463975,1781775038000,-1916.89855205,0.00012,2]
[425464005,1781775040000,-3165.25188499,0.00012,2]
[425464012,1781775040000,-516.51008737,0.00012,2]
[425464014,1781775040000,-692.6987689,0.00014258,2]
[425464016,1781775040000,-5234.5097004,0.00014258,2]
[425464025,1781775040000,-226.2504255,0.00014917,2]
[425464020,1781775040000,-618.31881905,0.00014452,2]
[425464022,1781775040000,-251.29378291,0.00014504,2]
[425464023,1781775040000,-865.46,0.00014794,2]
[425464029,1781775040000,-978.8462779,0.00016039,2]
[425464027,1781775040000,-156.4418284,0.00016039,2]
[425464018,1781775040000,-174.6834471,0.00014258,2]
[425464622,1781775046000,-500.0,0.00016224,2]
[425464617,1781775046000,-500.0,0.00016224,2]
[425464620,1781775046000,-565.21918031,0.00016224,2]
[425464616,1781775046000,-979.44046521,0.00016039,2]
[425464618,1781775046000,-500.0,0.00016224,2]
[425464619,1781775046000,-500.0,0.00016224,2]
[425464621,1781775046000,-500.0,0.00016224,2]
[425464624,1781775046000,-500.0,0.00016224,2]
[425464623,1781775046000,-500.0,0.00016224,2]
[425464628,1781775046000,-4157.2816006,0.00016225,2]
[425464629,1781775046000,-4104.34818424,0.00016226,2]
[425464625,1781775046000,-500.0,0.00016224,2]
[425464627,1781775046000,-500.0,0.00016224,2]
[425464626,1781775046000,-185.71876608,0.00016224,2]
[425464631,1781775046000,-1358.08167529,0.00016226,2]
[425464630,1781775046000,-1931.09914278,0.00016226,2]
[425464803,1781776232000,-127.94763666,0.00013692,2]
[425464802,1781776232000,-298.78224417,0.000126,7]
[425464969,1781776238000,-297.58335291,0.00013692,2]
[425464971,1781776238000,-3637.62140049,0.00016064,2]
[425464967,1781776238000,-4063.54622423,0.00013692,2]
[425464973,1781776238000,-291.54691268,0.00016124,2]
[425464977,1781776238000,-500.0,0.00016124,2]
[425464975,1781776238000,-500.0,0.00016124,2]
[425464981,1781776238000,-500.0,0.00016124,2]
[425464989,1781776238000,-500.0,0.00016124,2]
[425464983,1781776238000,-500.0,0.00016124,2]
[425464985,1781776238000,-500.0,0.00016124,2]
[425464987,1781776238000,-431.44608362,0.00016124,2]
[425464990,1781776238000,-500.0,0.00016124,2]
[425464992,1781776238000,-500.0,0.00016124,2]
[425464994,1781776238000,-326.45757334,0.00016124,2]
[425464979,1781776238000,-500.0,0.00016124,2]
[425465870,1781776246000,-391.42303508,0.00016124,2]
[425465875,1781776246000,-500.0,0.00016124,2]
[425465874,1781776246000,-500.0,0.00016124,2]
[425465883,1781776246000,-151.5,0.00016164,2]
[425465885,1781776246000,-151.5,0.00016164,2]
[425465896,1781776246000,-500.0,0.00016271,2]
[425465825,1781776246000,-173.54242666,0.00016124,2]
[425465902,1781776246000,-500.0,0.00016271,2]
[425465872,1781776246000,-500.0,0.00016124,2]
[425465900,1781776246000,-500.0,0.00016271,2]
[425465906,1781776246000,-500.0,0.00016271,2]
[425465888,1781776246000,-151.5,0.00016164,2]
[425465887,1781776246000,-151.5,0.00016164,2]
[425465898,1781776246000,-500.0,0.00016271,2]
[425465881,1781776246000,-69797.58414747,0.00016125,2]
[425465832,1781776246000,-500.0,0.00016124,2]
[425465879,1781776246000,-6612.59504986,0.00016125,2]
[425465823,1781776246000,-2092.52893684,0.00016064,2]
[425465826,1781776246000,-500.0,0.00016124,2]
[425465828,1781776246000,-500.0,0.00016124,2]
[425465830,1781776246000,-500.0,0.00016124,2]
[425465841,1781776246000,-419.47126706,0.00016124,2]
[425465845,1781776246000,-500.0,0.00016124,2]
[425465877,1781776246000,-450.0,0.00016124,2]
[425465834,1781776246000,-500.0,0.00016124,2]
[425465847,1781776246000,-500.0,0.00016124,2]
[425465839,1781776246000,-500.0,0.00016124,2]
[425465851,1781776246000,-108.57696492,0.00016124,2]
[425465849,1781776246000,-500.0,0.00016124,2]
[425465837,1781776246000,-500.0,0.00016124,2]
[425465836,1781776246000,-500.0,0.00016124,2]
[425465843,1781776246000,-500.0,0.00016124,2]
[425465890,1781776246000,-254.19429411,0.00016164,2]
[425465904,1781776246000,-500.0,0.00016271,2]
[425465908,1781776246000,-500.0,0.00016271,2]
[425465943,1781776246000,-500.0,0.00016438,2]
[425465954,1781776246000,-1004.0,0.00016607,2]
[425465936,1781776246000,-500.0,0.00016438,2]
[425465940,1781776246000,-500.0,0.00016438,2]
[425465938,1781776246000,-500.0,0.00016438,2]
[425465941,1781776246000,-500.0,0.00016438,2]
[425465950,1781776246000,-298.55305354,0.00016607,2]
[425465956,1781776246000,-250.52802638,0.00016607,2]
[425465958,1781776246000,-177.97896407,0.00016646,2]
[425465962,1781776246000,-622.29736246,0.00016712,2]
[425465967,1781776246000,-500.0,0.00016712,2]
[425465964,1781776246000,-500.0,0.00016712,2]
[425465965,1781776246000,-575.98186477,0.00016712,2]
[425465894,1781776246000,-500.0,0.00016271,2]
[425465960,1781776246000,-340.06134987,0.00016712,2]
[425465949,1781776246000,-666.0,0.00016545,2]
[425465892,1781776246000,-4489.0772138,0.00016236,2]
[425465947,1781776246000,-600.0,0.00016488,2]
[425465910,1781776246000,-500.0,0.00016271,2]
[425465952,1781776246000,-200.0,0.00016607,2]
[425465913,1781776246000,-500.0,0.00016271,2]
[425465911,1781776246000,-500.0,0.00016271,2]
[425465915,1781776246000,-556.66345078,0.00016271,2]
[425465921,1781776246000,-500.0,0.00016438,2]
[425465917,1781776246000,-1419.463,0.00016423,2]
[425465925,1781776246000,-500.0,0.00016438,2]
[425465919,1781776246000,-1841.0,0.00016423,2]
[425465931,1781776246000,-500.0,0.00016438,2]
[425465929,1781776246000,-167.07,0.00016438,2]
[425465927,1781776246000,-500.0,0.00016438,2]
[425465932,1781776246000,-500.0,0.00016438,2]
[425465945,1781776246000,-500.0,0.00016438,2]
[425465923,1781776246000,-500.0,0.00016438,2]
[425465934,1781776246000,-500.0,0.00016438,2]
[425465982,1781776247000,-500.0,0.00016712,2]
[425465981,1781776247000,-500.0,0.00016712,2]
[425465973,1781776247000,-500.0,0.00016712,2]
[425465969,1781776247000,-379.73595436,0.00016712,2]
[425465975,1781776247000,-500.0,0.00016712,2]
[425465977,1781776247000,-500.0,0.00016712,2]
[425465984,1781776247000,-297.02349837,0.00016803,2]
[425465971,1781776247000,-500.0,0.00016712,2]
[425465986,1781776247000,-240.0,0.00016877,2]
[425465979,1781776247000,-526.11628984,0.00016712,2]
[425465989,1781776247000,-301.09347011,0.00016899,2]
[425465991,1781776247000,-307.34566045,0.00016899,2]
[425465997,1781776247000,-409.82477895,0.00016986,2]
[425465999,1781776247000,-322.50300223,0.00016986,2]
[425465993,1781776247000,-185.881481,0.00016912,2]
[425466001,1781776247000,-333.81812684,0.00016986,2]
[425466003,1781776247000,-500.0,0.00016986,2]
[425465995,1781776247000,-252.06,0.00016986,2]
[425466005,1781776247000,-27.70972699,0.00016986,2]
[425465988,1781776247000,-167.44159165,0.00016899,2]
[425467528,1781776394000,3902.98951642,0.00012,90]
[425467659,1781777432000,-507.15395876,0.0001,2]
[425467661,1781777432000,-4686.33633981,0.0001,2]
[425467663,1781777432000,-323.06873358,0.0001,2]
[425467665,1781777432000,-670.94,0.0001,2]
[425467670,1781777432000,-254.7419739,0.00015068,2]
[425467672,1781777432000,-1000.0,0.00015314,2]
[425467674,1781777432000,-3241.48887754,0.000158,2]
[425467676,1781777432000,-265.41383618,0.000158,2]
[425467668,1781777432000,-3088.09820567,0.0001,2]
[425467678,1781777432000,-408.24416984,0.0001589,3]
[425467876,1781777438000,-471.18751251,0.00015899,2]
[425467870,1781777438000,-500.0,0.00015899,2]
[425467874,1781777438000,-500.0,0.00015899,2]
[425467867,1781777438000,-500.0,0.00015899,2]
[425467865,1781777438000,-500.0,0.00015899,2]
[425467861,1781777438000,-500.0,0.00015899,2]
[425467858,1781777438000,-500.0,0.00015899,2]
[425467859,1781777438000,-500.0,0.00015899,2]
[425467856,1781777438000,-500.0,0.00015899,2]
[425467854,1781777438000,-500.0,0.00015899,2]
[425467846,1781777438000,-2298.1,0.0001589,3]
[425467844,1781777438000,-4187.96583016,0.0001589,3]
[425467852,1781777438000,-204.08283887,0.00015899,2]
[425467850,1781777438000,-500.0,0.00015899,2]
[425467848,1781777438000,-1149.05,0.0001589,3]
[425467863,1781777438000,-500.0,0.00015899,2]
[425467872,1781777438000,-381.27178707,0.00015899,2]
[425467894,1781777438000,-197.58896608,0.00015899,2]
[425467869,1781777438000,-500.0,0.00015899,2]
[425467908,1781777438000,-3585.36740699,0.00016,2]
[425467905,1781777438000,-1609.06079025,0.00016,2]
[425467904,1781777438000,-72340.84185722,0.00016,2]
[425467901,1781777438000,-1734.4279014,0.00015966,2]
[425467890,1781777438000,-500.0,0.00015899,2]
[425467900,1781777438000,-77738.87278176,0.000159,2]
[425467897,1781777438000,-126299.88231045,0.000159,2]
[425467888,1781777438000,-500.0,0.00015899,2]
[425467896,1781777438000,-9281.4442107,0.000159,2]
[425467880,1781777438000,-500.0,0.00015899,2]
[425467892,1781777438000,-500.0,0.00015899,2]
[425467883,1781777438000,-500.0,0.00015899,2]
[425467886,1781777438000,-500.0,0.00015899,2]
[425467885,1781777438000,-500.0,0.00015899,2]
[425467881,1781777438000,-500.0,0.00015899,2]
[425467878,1781777438000,-500.0,0.00015899,2]
[425468086,1781777443000,-3000.0,0.00015899,2]
[425468136,1781777446000,-1565.1,0.00015899,2]
[425468517,1781778640000,-1629.16132884,0.0001559,2]
[425468514,1781778640000,-199.1538993,0.00014849,2]
[425468516,1781778640000,-197.41008319,0.00014988,2]
[425468512,1781778640000,-155.38029183,0.00012916,2]
[425468510,1781778640000,-152.0,0.00012603,7]
[425468509,1781778640000,-2538.0,0.000105,2]
[425468507,1781778640000,-298.78224417,0.000105,7]
[425468519,1781778640000,-1944.58947904,0.00015599,2]
[425468612,1781778641000,-59912.31565786,0.000157,2]
[425468606,1781778641000,-1627.82,0.0001569,3]
[425468613,1781778641000,-515.80904471,0.00015754,5]
[425468609,1781778641000,-434.0608296,0.00015699,2]
[425468608,1781778641000,-813.91,0.0001569,3]
[425468615,1781778641000,-351.25218337,0.00015777,2]
[425468617,1781778641000,-548.28270497,0.00015777,2]
[425468619,1781778641000,-542.69663656,0.00015798,2]
[425468624,1781778641000,-194.72,0.00015799,2]
[425468626,1781778641000,-500.0,0.00015799,2]
[425468622,1781778641000,-500.0,0.00015799,2]
[425468601,1781778641000,-19207.55139355,0.000156,2]
[425468641,1781778641000,-185.881481,0.00015828,2]
[425468629,1781778641000,-500.0,0.00015799,2]
[425468632,1781778641000,-500.0,0.00015799,2]
[425468634,1781778641000,-258.21945307,0.00015799,2]
[425468637,1781778641000,-500.0,0.00015799,2]
[425468628,1781778641000,-500.0,0.00015799,2]
[425468604,1781778641000,-3255.65,0.0001569,3]
[425468558,1781778641000,-500.0,0.00015599,2]
[425468564,1781778641000,-500.0,0.00015599,2]
[425468526,1781778641000,-1097.97819506,0.00015599,2]
[425468527,1781778641000,-211.26141467,0.00015599,2]
[425468529,1781778641000,-500.0,0.00015599,2]
[425468531,1781778641000,-500.0,0.00015599,2]
[425468533,1781778641000,-581.78972514,0.00015599,2]
[425468538,1781778641000,-500.0,0.00015599,2]
[425468541,1781778641000,-500.0,0.00015599,2]
[425468543,1781778641000,-500.0,0.00015599,2]
[425468562,1781778641000,-500.0,0.00015599,2]
[425468545,1781778641000,-500.0,0.00015599,2]
[425468554,1781778641000,-500.0,0.00015599,2]
[425468549,1781778641000,-500.0,0.00015599,2]
[425468552,1781778641000,-500.0,0.00015599,2]
[425468550,1781778641000,-500.0,0.00015599,2]
[425468547,1781778641000,-500.0,0.00015599,2]
[425468560,1781778641000,-216.37429014,0.00015599,2]
[425468635,1781778641000,-500.0,0.00015799,2]
[425468565,1781778641000,-104308.42513571,0.000156,2]
[425468539,1781778641000,-500.0,0.00015599,2]
[425468639,1781778641000,-520.19816249,0.00015799,2]
[425468556,1781778641000,-500.0,0.00015599,2]
[425468645,1781778641000,-52464.72994554,0.00016,2]
[425468684,1781778641000,-832.62459037,0.00016607,2]
[425468689,1781778641000,-1629.16132882,0.0001662,2]
[425468693,1781778641000,-500.0,0.00016712,2]
[425468691,1781778641000,-185.70903171,0.00016646,2]
[425468695,1781778641000,-500.0,0.00016712,2]
[425468696,1781778641000,-500.0,0.00016712,2]
[425468698,1781778641000,-152.74935992,0.00016712,2]
[425468700,1781778641000,-500.0,0.00016712,2]
[425468685,1781778641000,-275.24892119,0.00016607,2]
[425468701,1781778641000,-200.0,0.00016877,2]
[425468705,1781778641000,-205.40414104,0.00016986,2]
[425468711,1781778641000,-500.0,0.00016986,2]
[425468709,1781778641000,-500.0,0.00016986,2]
[425468713,1781778641000,-708.00868056,0.00016998,2]
[425468714,1781778641000,-708.00868056,0.00016998,2]
[425468716,1781778641000,-708.00868056,0.00016998,2]
[425468718,1781778641000,-708.00868056,0.00016998,2]
[425468651,1781778641000,-185.43846616,0.00016087,2]
[425468703,1781778641000,-1629.16132882,0.00016963,2]
[425468687,1781778641000,-397.06844074,0.00016607,2]
[425468707,1781778641000,-634.75290703,0.00016986,2]
[425468682,1781778641000,-692.0124991,0.00016607,2]
[425468649,1781778641000,-151.0,0.00016,2]
[425468680,1781778641000,-384.45138839,0.00016607,2]
[425468643,1781778641000,-1629.16132882,0.00015933,2]
[425468653,1781778641000,-600.0,0.00016115,2]
[425468647,1781778641000,-500.0,0.00016,2]
[425468655,1781778641000,-445.0,0.00016229,2]
[425468658,1781778641000,-194.203,0.00016229,2]
[425468657,1781778641000,-745.0,0.00016229,2]
[425468664,1781778641000,-500.0,0.00016438,2]
[425468666,1781778641000,-500.0,0.00016438,2]
[425468662,1781778641000,-2391.67785952,0.00016436,2]
[425468669,1781778641000,-500.0,0.00016438,2]
[425468671,1781778641000,-500.0,0.00016438,2]
[425468668,1781778641000,-500.0,0.00016438,2]
[425468675,1781778641000,-300.04489743,0.00016607,2]
[425468677,1781778641000,-166.69160968,0.00016607,2]
[425468673,1781778641000,-500.0,0.00016438,2]
[425468660,1781778641000,-1629.16132882,0.00016277,2]
[425468678,1781778641000,-533.41315099,0.00016607,2]
[425468803,1781778642000,-202.712976,0.00018279,2]
[425468796,1781778642000,-151.89879823,0.000182,2]
[425468801,1781778642000,-181.356488,0.00018279,2]
[425468797,1781778642000,-379.949169,0.00018245,2]
[425468794,1781778642000,-177.333,0.000182,2]
[425468784,1781778642000,-3772.99787192,0.00018,15]
[425468792,1781778642000,-461.88648721,0.000182,2]
[425468788,1781778642000,-461.88648721,0.00018,2]
[425468790,1781778642000,-500.0,0.00018082,2]
[425468780,1781778642000,-500.0,0.00017808,2]
[425468799,1781778642000,-160.0,0.00018279,2]
[425468782,1781778642000,-164.49092488,0.000179,4]
[425468786,1781778642000,-1230.0,0.00018,2]
[425468805,1781778642000,-453.7925037,0.0001828,2]
[425468822,1781778642000,-500.0,0.0001863,2]
[425468812,1781778642000,-461.88648721,0.000185,2]
[425468818,1781778642000,-1491.012462,0.00018613,2]
[425468814,1781778642000,-160.0,0.00018613,2]
[425468810,1781778642000,-151.0,0.000184,2]
[425468806,1781778642000,-500.0,0.00018356,2]
[425468816,1781778642000,-825.506231,0.00018613,2]
[425468820,1781778642000,-1922.25694195,0.00018618,2]
[425468823,1781778642000,-160.0,0.00018676,2]
[425468825,1781778642000,-211.851514,0.00018676,2]
[425468827,1781778642000,-263.703028,0.00018676,2]
[425468829,1781778642000,-461.88648721,0.000187,2]
[425468779,1781778642000,-720.0,0.00017726,2]
[425468831,1781778642000,-160.0,0.00018711,2]
[425468808,1781778642000,-461.88648721,0.000184,2]
[425468777,1781778642000,-192.644961,0.00017699,2]
[425468736,1781778642000,-15675.73775319,0.00017,6]
[425468773,1781778642000,-500.0,0.00017534,2]
[425468833,1781778642000,-212.868541,0.00018711,2]
[425468720,1781778642000,-708.00868056,0.00016998,2]
[425468722,1781778642000,-708.00868045,0.00016998,2]
[425468724,1781778642000,-582.50179402,0.00016998,2]
[425468726,1781778642000,-1000.0,0.00016998,2]
[425468727,1781778642000,-1000.0,0.00016998,2]
[425468729,1781778642000,-1000.0,0.00016998,2]
[425468731,1781778642000,-1000.0,0.00016998,2]
[425468733,1781778642000,-1000.0,0.00016998,2]
[425468734,1781778642000,-151.0,0.00016998,2]
[425468747,1781778642000,-10000.0,0.00017046,2]
[425468738,1781778642000,-228.05629358,0.00017,2]
[425468744,1781778642000,-160.0,0.00017016,2]
[425468775,1781778642000,-502.12801059,0.00017534,2]
[425468740,1781778642000,-500.0,0.00017002,2]
[425468745,1781778642000,-160.0,0.00017016,2]
[425468755,1781778642000,-1627.82,0.0001706,3]
[425468759,1781778642000,-228.05629358,0.000172,2]
[425468757,1781778642000,-1691.89878987,0.00017093,2]
[425468749,1781778642000,-151.0,0.00017046,2]
[425468751,1781778642000,-6511.3,0.0001706,3]
[425468753,1781778642000,-3255.64,0.0001706,3]
[425468760,1781778642000,-180.18018018,0.00017234,2]
[425468769,1781778642000,-1230.24444285,0.00017266,2]
[425468771,1781778642000,-623.13668159,0.00017285,2]
[425468762,1781778642000,-307.58,0.00017252,2]
[425468766,1781778642000,-500.0,0.0001726,2]
[425468768,1781778642000,-500.0,0.0001726,2]
[425468742,1781778642000,-160.0,0.00017016,2]
[425468835,1781778642000,-265.737082,0.00018711,2]
[425468764,1781778642000,-160.0,0.0001726,3]
[425468839,1781778642000,-977.864556,0.00018746,2]
[425468955,1781778642000,-215.32,0.00019577,2]
[425468901,1781778642000,-420.815499,0.00019178,2]
[425468897,1781778642000,-420.815499,0.00019178,2]
[425468905,1781778642000,-420.815499,0.00019178,2]
[425468915,1781778642000,-420.815499,0.00019178,2]
[425468909,1781778642000,-420.815499,0.00019178,2]
[425468907,1781778642000,-420.815499,0.00019178,2]
[425468913,1781778642000,-420.815499,0.00019178,2]
[425468911,1781778642000,-420.815499,0.00019178,2]
[425468917,1781778642000,-420.815499,0.00019178,2]
[425468920,1781778642000,-420.815499,0.00019178,2]
[425468926,1781778642000,-420.815505,0.00019178,2]
[425468918,1781778642000,-420.815499,0.00019178,2]
[425468899,1781778642000,-420.815499,0.00019178,2]
[425468922,1781778642000,-420.815499,0.00019178,2]
[425468928,1781778642000,-1586.0,0.00019178,2]
[425468931,1781778642000,-326.441679,0.00019193,2]
[425468930,1781778642000,-186.422708,0.00019188,2]
[425468939,1781778642000,-186.0,0.00019229,2]
[425468933,1781778642000,-151.0,0.000192,2]
[425468935,1781778642000,-445.0,0.00019229,2]
[425468942,1781778642000,-163.50213754,0.00019432,2]
[425468944,1781778642000,-176.61482922,0.00019432,2]
[425468947,1781778642000,-500.0,0.00019452,2]
[425468946,1781778642000,-221.30199109,0.00019432,2]
[425468951,1781778642000,-864.0,0.00019499,2]
[425468949,1781778642000,-160.0,0.00019476,2]
[425468953,1781778642000,-1485.911216,0.00019543,2]
[425468924,1781778642000,-420.815499,0.00019178,2]
[425468903,1781778642000,-420.815499,0.00019178,2]
[425468937,1781778642000,-745.0,0.00019229,2]
[425468893,1781778642000,-420.815499,0.00019178,2]
[425468895,1781778642000,-420.815499,0.00019178,2]
[425468840,1781778642000,-1795.729112,0.00018746,2]
[425468843,1781778642000,-9808.548,0.000188,2]
[425468846,1781778642000,-160.0,0.00018864,3]
[425468844,1781778642000,-151.0,0.000188,2]
[425468848,1781778642000,-500.0,0.00018904,2]
[425468850,1781778642000,-170056.15230746,0.00019,2]
[425468852,1781778642000,-250.14,0.00019,2]
[425468854,1781778642000,-1000.0,0.00019,2]
[425468856,1781778642000,-1000.0,0.00019,2]
[425468860,1781778642000,-1000.0,0.00019,2]
[425468858,1781778642000,-1000.0,0.00019,2]
[425468864,1781778642000,-791.736954,0.00019012,2]
[425468867,1781778642000,-1000.0,0.00019012,2]
[425468837,1781778642000,-160.0,0.00018746,2]
[425468862,1781778642000,-160.0,0.00019012,2]
[425468866,1781778642000,-1423.473908,0.00019012,2]
[425468891,1781778642000,-420.815499,0.00019178,2]
[425468887,1781778642000,-500.0,0.00019178,2]
[425468884,1781778642000,-868.32,0.00019178,2]
[425468882,1781778642000,-995.18,0.00019178,2]
[425468880,1781778642000,-227.969501,0.00019158,2]
[425468889,1781778642000,-420.815499,0.00019178,2]
[425468877,1781778642000,-1015.5999,0.000191,2]
[425468875,1781778642000,-531.62,0.000191,2]
[425468873,1781778642000,-272.16005704,0.000191,2]
[425468871,1781778642000,-1471.1899,0.000191,2]
[425468869,1781778642000,-1106.2399,0.000191,2]
[425468878,1781778642000,-367.5233,0.000191,2]
[425468885,1781778642000,-434.16,0.00019178,2]
[425468991,1781778643000,-363.45102366,0.00019647,2]
[425468976,1781778643000,-344.52,0.00019577,2]
[425468984,1781778643000,-300.0,0.00019589,3]
[425468986,1781778643000,-151.0,0.000196,2]
[425468982,1781778643000,-5010.77998278,0.0001958,2]
[425468980,1781778643000,-344.48036384,0.00019577,2]
[425468978,1781778643000,-344.52,0.00019577,2]
[425468988,1781778643000,-571.999088,0.0001961,2]
[425468965,1781778643000,-344.52,0.00019577,2]
[425468972,1781778643000,-344.52,0.00019577,2]
[425468970,1781778643000,-344.52,0.00019577,2]
[425468969,1781778643000,-344.52,0.00019577,2]
[425468967,1781778643000,-344.52,0.00019577,2]
[425468995,1781778643000,-151.0,0.000197,2]
[425468959,1781778643000,-215.32,0.00019577,2]
[425468963,1781778643000,-344.52,0.00019577,2]
[425468961,1781778643000,-215.32,0.00019577,2]
[425468957,1781778643000,-215.32,0.00019577,2]
[425468974,1781778643000,-344.52,0.00019577,2]